[Event "Titled Tuesday Blitz October 11 Late 2022"]
[White "Mirzoev, Azer"]
[Black "Hajiyev, Kanan"]
[WhiteFideId "13400304"]
[BlackFideId "13404148"]
[WhiteElo "2525"]
[BlackElo "2118"]
[Result "1-0"]
[Round "10"]
[TimeControl "180+1"]
[Date "2022.10.11"]
[WhiteClock "0:00:21"]
[BlackClock "0:00:10"]

1. Nf3 {[%clk 0:03:00]}  d5 {[%clk 0:02:43]} 2. c4 {[%clk 0:02:59]}  c6 {[%clk 0:02:43]} 3. e3 {[%clk 0:02:59]}  Nf6 {[%clk 0:02:43]} 4. b3 {[%clk 0:02:59]}  g6 {[%clk 0:02:43]} 5. Bb2 {[%clk 0:03:00]}  Bg7 {[%clk 0:02:44]} 6. Be2 {[%clk 0:03:00]}  O-O {[%clk 0:02:43]} 7. O-O {[%clk 0:03:00]}  a5 {[%clk 0:02:42]} 8. Nc3 {[%clk 0:02:57]}  Bg4 {[%clk 0:02:39]} 9. h3 {[%clk 0:02:56]}  Bxf3 {[%clk 0:02:39]} 10. Bxf3 {[%clk 0:02:57]}  e5 {[%clk 0:02:37]} 11. cxd5 {[%clk 0:02:50]}  cxd5 {[%clk 0:02:32]} 12. d3 {[%clk 0:02:49]}  Nc6 {[%clk 0:02:26]} 13. Nb5 {[%clk 0:02:33]}  Re8 {[%clk 0:02:20]} 14. Be2 {[%clk 0:02:28]}  Qd7 {[%clk 0:02:08]} 15. d4 {[%clk 0:02:21]}  e4 {[%clk 0:01:36]} 16. Rc1 {[%clk 0:02:20]}  Kh8 {[%clk 0:01:36]} 17. a4 {[%clk 0:02:19]}  Rac8 {[%clk 0:01:26]} 18. Ba3 {[%clk 0:02:13]}  Bf8 {[%clk 0:01:14]} 19. Bxf8 {[%clk 0:02:11]}  Rxf8 {[%clk 0:01:15]} 20. Qd2 {[%clk 0:02:07]}  Nh5 {[%clk 0:01:03]} 21. Rc5 {[%clk 0:01:56]}  f5 {[%clk 0:00:58]} 22. Bxh5 {[%clk 0:01:51]}  gxh5 {[%clk 0:00:59]} 23. f3 {[%clk 0:01:52]}  Rce8 {[%clk 0:00:41]} 24. Kh1 {[%clk 0:01:47]}  f4 {[%clk 0:00:34]} 25. fxe4 {[%clk 0:01:44]}  Rxe4 {[%clk 0:00:21]} 26. exf4 {[%clk 0:01:35]}  Rfe8 {[%clk 0:00:10]} 27. Rf2 {[%clk 0:01:15]}  Re1+ {[%clk 0:00:09]} 28. Kh2 {[%clk 0:01:15]}  h4 {[%clk 0:00:10]} 29. Rc3 {[%clk 0:01:09]}  Ra1 {[%clk 0:00:06]} 30. Re3 {[%clk 0:01:07]}  Rg8 {[%clk 0:00:02]} 31. Qe2 {[%clk 0:01:03]}  Qg7 {[%clk 0:00:02]} 32. Qf3 {[%clk 0:00:52]}  Nxd4 {[%clk 0:00:02]} 33. Nxd4 {[%clk 0:00:52]}  Qxd4 {[%clk 0:00:03]} 34. Rd3 {[%clk 0:00:44]}  Qe4 {[%clk 0:00:04]} 35. Re2 {[%clk 0:00:31]}  Qxf3 {[%clk 0:00:04]} 36. Rxf3 {[%clk 0:00:31]}  d4 {[%clk 0:00:03]} 37. f5 {[%clk 0:00:27]}  Rd8 {[%clk 0:00:03]} 38. f6 {[%clk 0:00:20]}  d3 {[%clk 0:00:04]} 39. Rd2 {[%clk 0:00:20]}  Re1 {[%clk 0:00:03]} 40. Rfxd3 {[%clk 0:00:18]}  Rf8 {[%clk 0:00:04]} 41. Rf3 {[%clk 0:00:18]}  Kg8 {[%clk 0:00:04]} 42. Rd4 {[%clk 0:00:18]}  Re6 {[%clk 0:00:05]} 43. Rg4+ {[%clk 0:00:17]}  Kf7 {[%clk 0:00:05]} 44. Rxh4 {[%clk 0:00:17]}  Kg6 {[%clk 0:00:04]} 45. Rg4+ {[%clk 0:00:17]}  Kh6 {[%clk 0:00:03]} 46. Rgf4 {[%clk 0:00:17]}  Kg6 {[%clk 0:00:02]} 47. g4 {[%clk 0:00:17]}  Rfxf6 {[%clk 0:00:02]} 48. Rxf6+ {[%clk 0:00:17]}  Rxf6 {[%clk 0:00:03]} 49. Rxf6+ {[%clk 0:00:17]}  Kxf6 {[%clk 0:00:04]} 50. Kg3 {[%clk 0:00:18]}  Ke5 {[%clk 0:00:04]} 51. h4 {[%clk 0:00:18]}  Kd4 {[%clk 0:00:04]} 52. g5 {[%clk 0:00:19]}  Kc3 {[%clk 0:00:04]} 53. h5 {[%clk 0:00:19]}  Kxb3 {[%clk 0:00:05]} 54. g6 {[%clk 0:00:20]}  hxg6 {[%clk 0:00:06]} 55. hxg6 {[%clk 0:00:21]}  b5 {[%clk 0:00:06]} 56. axb5 {[%clk 0:00:20]}  a4 {[%clk 0:00:07]} 57. g7 {[%clk 0:00:20]}  a3 {[%clk 0:00:07]} 58. g8=Q+ {[%clk 0:00:20]}  Kb2 {[%clk 0:00:08]} 59. Qg7+ {[%clk 0:00:20]}  Kb1 {[%clk 0:00:07]} 60. b6 {[%clk 0:00:21]}  a2 {[%clk 0:00:08]} 61. b7 {[%clk 0:00:21]}  a1=Q {[%clk 0:00:09]} 62. Qxa1+ {[%clk 0:00:21]}  Kxa1 {[%clk 0:00:10]} 1-0


[Site "https://www.chess.com"]

[Event "Titled Tuesday Blitz October 11 Late 2022"]
[White "Noboa Silva, Kevin"]
[Black "Mickiewicz, Piotr"]
[WhiteFideId "3618471"]
[BlackFideId "1114891"]
[WhiteElo "2178"]
[BlackElo "2246"]
[Result "0-1"]
[Round "10"]
[TimeControl "180+1"]
[Date "2022.10.12"]
[WhiteClock "0:00:11"]
[BlackClock "0:00:08"]

1. e4 {[%clk 0:03:00]}  c5 {[%clk 0:02:59]} 2. c3 {[%clk 0:02:59]}  Nf6 {[%clk 0:02:57]} 3. e5 {[%clk 0:03:00]}  Nd5 {[%clk 0:02:58]} 4. d4 {[%clk 0:03:00]}  cxd4 {[%clk 0:02:57]} 5. cxd4 {[%clk 0:02:59]}  Nc6 {[%clk 0:02:53]} 6. Nf3 {[%clk 0:02:58]}  g6 {[%clk 0:02:50]} 7. Nc3 {[%clk 0:02:52]}  Nxc3 {[%clk 0:02:48]} 8. bxc3 {[%clk 0:02:53]}  Bg7 {[%clk 0:02:47]} 9. h4 {[%clk 0:02:53]}  d6 {[%clk 0:02:37]} 10. exd6 {[%clk 0:02:51]}  Qxd6 {[%clk 0:02:34]} 11. h5 {[%clk 0:02:51]}  Bg4 {[%clk 0:02:32]} 12. h6 {[%clk 0:02:50]}  Bf6 {[%clk 0:02:31]} 13. Be2 {[%clk 0:02:50]}  Rc8 {[%clk 0:02:16]} 14. Be3 {[%clk 0:02:45]}  O-O {[%clk 0:02:09]} 15. O-O {[%clk 0:02:43]}  Na5 {[%clk 0:02:06]} 16. Rc1 {[%clk 0:02:40]}  Nc4 {[%clk 0:02:00]} 17. Qb3 {[%clk 0:02:22]}  Nxe3 {[%clk 0:01:52]} 18. fxe3 {[%clk 0:02:23]}  b6 {[%clk 0:01:48]} 19. e4 {[%clk 0:02:17]}  Bxf3 {[%clk 0:01:22]} 20. Bxf3 {[%clk 0:02:01]}  Bg5 {[%clk 0:01:03]} 21. e5 {[%clk 0:01:56]}  Qd8 {[%clk 0:00:45]} 22. Rce1 {[%clk 0:01:51]}  Bd2 {[%clk 0:00:43]} 23. e6 {[%clk 0:01:42]}  f5 {[%clk 0:00:34]} 24. Re5 {[%clk 0:01:27]}  Rxc3 {[%clk 0:00:32]} 25. Qa4 {[%clk 0:01:02]}  Bxh6 {[%clk 0:00:23]} 26. Rd5 {[%clk 0:00:58]}  Qc7 {[%clk 0:00:21]} 27. Rd7 {[%clk 0:00:51]}  Be3+ {[%clk 0:00:20]} 28. Kh1 {[%clk 0:00:50]}  Qg3 {[%clk 0:00:20]} 29. d5 {[%clk 0:00:41]}  f4 {[%clk 0:00:17]} 30. Bg4 {[%clk 0:00:12]}  Qxg4 {[%clk 0:00:15]} 31. Rf3 {[%clk 0:00:12]}  Rc1+ {[%clk 0:00:13]} 32. Kh2 {[%clk 0:00:12]}  Bg1+ {[%clk 0:00:10]} 33. Kh1 {[%clk 0:00:12]}  Bf2+ {[%clk 0:00:10]} 34. Kh2 {[%clk 0:00:11]}  Bg3+ {[%clk 0:00:09]} 35. Rxg3 {[%clk 0:00:11]}  fxg3# {[%clk 0:00:08]} 0-1


[Site "https://www.chess.com"]

[Event "Titled Tuesday Blitz October 11 Late 2022"]
[White "Nozdrachev, Leonid"]
[Black "Machidon, Cristi"]
[WhiteFideId "24113433"]
[BlackFideId "13904590"]
[WhiteElo "2249"]
[BlackElo "2312"]
[Result "0-1"]
[Round "10"]
[TimeControl "180+1"]
[Date "2022.10.11"]
[WhiteClock "0:00:02"]
[BlackClock "0:00:17"]

1. Nf3 {[%clk 0:03:00]}  d5 {[%clk 0:02:59]} 2. g3 {[%clk 0:03:00]}  c6 {[%clk 0:02:59]} 3. Bg2 {[%clk 0:03:01]}  Nf6 {[%clk 0:03:00]} 4. O-O {[%clk 0:03:02]}  g6 {[%clk 0:03:00]} 5. d3 {[%clk 0:03:01]}  Bg7 {[%clk 0:03:01]} 6. Re1 {[%clk 0:03:00]}  O-O {[%clk 0:03:01]} 7. Nbd2 {[%clk 0:02:58]}  a5 {[%clk 0:02:58]} 8. e4 {[%clk 0:02:58]}  Bg4 {[%clk 0:02:53]} 9. h3 {[%clk 0:02:56]}  Bxf3 {[%clk 0:02:53]} 10. Bxf3 {[%clk 0:02:57]}  e6 {[%clk 0:02:53]} 11. Nf1 {[%clk 0:02:49]}  Na6 {[%clk 0:02:49]} 12. Bg5 {[%clk 0:02:41]}  h6 {[%clk 0:02:47]} 13. Be3 {[%clk 0:02:42]}  Qc7 {[%clk 0:02:36]} 14. Nh2 {[%clk 0:02:27]}  Rfd8 {[%clk 0:02:33]} 15. e5 {[%clk 0:02:26]}  Nd7 {[%clk 0:02:31]} 16. d4 {[%clk 0:02:25]}  c5 {[%clk 0:02:30]} 17. c3 {[%clk 0:02:24]}  cxd4 {[%clk 0:02:20]} 18. cxd4 {[%clk 0:02:25]}  Rac8 {[%clk 0:02:18]} 19. Qd2 {[%clk 0:02:21]}  Kh7 {[%clk 0:02:12]} 20. Ng4 {[%clk 0:02:15]}  h5 {[%clk 0:02:08]} 21. Nh2 {[%clk 0:02:15]}  Nb6 {[%clk 0:01:47]} 22. Qxa5 {[%clk 0:02:11]}  Nc4 {[%clk 0:01:45]} 23. Qxc7 {[%clk 0:02:07]}  Rxc7 {[%clk 0:01:46]} 24. Rac1 {[%clk 0:02:06]}  Rdc8 {[%clk 0:01:29]} 25. b3 {[%clk 0:01:39]}  Nxe3 {[%clk 0:01:26]} 26. Rxc7 {[%clk 0:01:40]}  Rxc7 {[%clk 0:01:27]} 27. Rxe3 {[%clk 0:01:40]}  Nb4 {[%clk 0:01:23]} 28. a4 {[%clk 0:01:38]}  Bh6 {[%clk 0:01:21]} 29. Re2 {[%clk 0:01:30]}  Nc2 {[%clk 0:01:18]} 30. Kf1 {[%clk 0:01:18]}  Nxd4 {[%clk 0:01:18]} 31. Rb2 {[%clk 0:01:19]}  Rc3 {[%clk 0:01:16]} 32. Bd1 {[%clk 0:01:18]}  h4 {[%clk 0:00:46]} 33. Ng4 {[%clk 0:01:09]}  hxg3 {[%clk 0:00:44]} 34. fxg3 {[%clk 0:01:06]}  Rxg3 {[%clk 0:00:42]} 35. Nf6+ {[%clk 0:01:01]}  Kg7 {[%clk 0:00:40]} 36. b4 {[%clk 0:00:59]}  Be3 {[%clk 0:00:35]} 37. Rg2 {[%clk 0:00:52]}  Rxh3 {[%clk 0:00:34]} 38. Nh5+ {[%clk 0:00:45]}  Kh6 {[%clk 0:00:32]} 39. Ng3 {[%clk 0:00:45]}  Bf4 {[%clk 0:00:30]} 40. Kf2 {[%clk 0:00:38]}  Bxe5 {[%clk 0:00:29]} 41. b5 {[%clk 0:00:34]}  b6 {[%clk 0:00:27]} 42. a5 {[%clk 0:00:31]}  bxa5 {[%clk 0:00:23]} 43. b6 {[%clk 0:00:32]}  Nc6 {[%clk 0:00:21]} 44. Ba4 {[%clk 0:00:30]}  Nb4 {[%clk 0:00:19]} 45. b7 {[%clk 0:00:29]}  Nd3+ {[%clk 0:00:18]} 46. Ke3 {[%clk 0:00:22]}  Nc5 {[%clk 0:00:18]} 47. Kd2 {[%clk 0:00:09]}  Nxb7 {[%clk 0:00:18]} 48. Nf1 {[%clk 0:00:06]}  Nc5 {[%clk 0:00:17]} 49. Bc2 {[%clk 0:00:06]}  a4 {[%clk 0:00:17]} 50. Kd1 {[%clk 0:00:07]}  Bf4 {[%clk 0:00:17]} 51. Rf2 {[%clk 0:00:04]}  e5 {[%clk 0:00:17]} 52. Bxa4 {[%clk 0:00:01]}  Nxa4 {[%clk 0:00:17]} 53. Nd2 {[%clk 0:00:02]}  Nc3+ {[%clk 0:00:17]} 0-1


[Site "https://www.chess.com"]

[Event "Titled Tuesday Blitz October 11 Late 2022"]
[White "Osmonbekov, Talaibek"]
[Black "Potula, Kapish"]
[WhiteFideId "2017253"]
[BlackFideId "30903270"]
[WhiteElo "2135"]
[BlackElo "1994"]
[Result "1-0"]
[Round "10"]
[TimeControl "180+1"]
[Date "2022.10.12"]
[WhiteClock "0:00:13"]
[BlackClock "0:00:10"]

1. d4 {[%clk 0:03:00]}  Nf6 {[%clk 0:02:57]} 2. Bf4 {[%clk 0:03:01]}  e6 {[%clk 0:02:53]} 3. Nc3 {[%clk 0:03:02]}  b6 {[%clk 0:02:45]} 4. e3 {[%clk 0:02:59]}  Bb7 {[%clk 0:02:44]} 5. Nf3 {[%clk 0:02:56]}  Be7 {[%clk 0:02:39]} 6. a4 {[%clk 0:02:48]}  O-O {[%clk 0:02:36]} 7. a5 {[%clk 0:02:47]}  d6 {[%clk 0:02:34]} 8. Be2 {[%clk 0:02:38]}  a6 {[%clk 0:02:25]} 9. axb6 {[%clk 0:02:17]}  cxb6 {[%clk 0:02:26]} 10. O-O {[%clk 0:02:17]}  Nbd7 {[%clk 0:02:18]} 11. Re1 {[%clk 0:02:11]}  Qc7 {[%clk 0:02:02]} 12. h3 {[%clk 0:02:01]}  Rfd8 {[%clk 0:01:56]} 13. Qb1 {[%clk 0:01:52]}  b5 {[%clk 0:01:44]} 14. Nd2 {[%clk 0:01:30]}  Nb6 {[%clk 0:01:34]} 15. Bd3 {[%clk 0:01:27]}  Nfd5 {[%clk 0:01:08]} 16. Nxd5 {[%clk 0:01:24]}  Nxd5 {[%clk 0:01:06]} 17. c3 {[%clk 0:01:23]}  Nxf4 {[%clk 0:00:57]} 18. Bxh7+ {[%clk 0:01:21]}  Kh8 {[%clk 0:00:55]} 19. exf4 {[%clk 0:01:22]}  g6 {[%clk 0:00:55]} 20. Bxg6 {[%clk 0:01:21]}  fxg6 {[%clk 0:00:55]} 21. Rxe6 {[%clk 0:01:17]}  Rg8 {[%clk 0:00:46]} 22. Qe1 {[%clk 0:01:00]}  Rae8 {[%clk 0:00:39]} 23. Qe3 {[%clk 0:00:58]}  Bd5 {[%clk 0:00:37]} 24. f5 {[%clk 0:00:54]}  g5 {[%clk 0:00:33]} 25. Rh6+ {[%clk 0:00:45]}  Kg7 {[%clk 0:00:34]} 26. Rg6+ {[%clk 0:00:44]}  Kh7 {[%clk 0:00:29]} 27. Rxg8 {[%clk 0:00:31]}  Rxg8 {[%clk 0:00:30]} 28. Rxa6 {[%clk 0:00:29]}  Qb7 {[%clk 0:00:27]} 29. Ra1 {[%clk 0:00:19]}  Bxg2 {[%clk 0:00:22]} 30. d5 {[%clk 0:00:15]}  Bxd5 {[%clk 0:00:19]} 31. Ra7 {[%clk 0:00:14]}  Ra8 {[%clk 0:00:11]} 32. Rxb7 {[%clk 0:00:13]}  Ra1+ {[%clk 0:00:12]} 33. Kh2 {[%clk 0:00:13]}  Rh1+ {[%clk 0:00:12]} 34. Kg3 {[%clk 0:00:13]}  Bxb7 {[%clk 0:00:11]} 35. Qxe7+ {[%clk 0:00:13]}  Kh6 {[%clk 0:00:12]} 36. Qxb7 {[%clk 0:00:13]}  Rd1 {[%clk 0:00:12]} 37. Nf3 {[%clk 0:00:13]}  Rd3 {[%clk 0:00:11]} 38. Qf7 {[%clk 0:00:14]}  g4 {[%clk 0:00:10]} 39. Qg6# {[%clk 0:00:13]} 1-0


[Site "https://www.chess.com"]

[Event "Titled Tuesday Blitz October 11 Late 2022"]
[White "Petrova, Irina"]
[Black "Clawitter, Craig"]
[WhiteFideId "14124122"]
[BlackFideId "2023105"]
[WhiteElo "2023"]
[BlackElo "2232"]
[Result "1-0"]
[Round "10"]
[TimeControl "180+1"]
[Date "2022.10.12"]
[WhiteClock "0:00:09"]
[BlackClock "0:00:05"]

1. e4 {[%clk 0:03:00]}  e6 {[%clk 0:02:59]} 2. d4 {[%clk 0:03:00]}  d5 {[%clk 0:03:00]} 3. Nc3 {[%clk 0:03:00]}  Bb4 {[%clk 0:02:59]} 4. Ne2 {[%clk 0:02:59]}  dxe4 {[%clk 0:02:59]} 5. a3 {[%clk 0:02:59]}  Be7 {[%clk 0:02:59]} 6. g4 {[%clk 0:02:56]}  e5 {[%clk 0:02:49]} 7. h3 {[%clk 0:01:46]}  Nc6 {[%clk 0:02:42]} 8. d5 {[%clk 0:01:35]}  Nd4 {[%clk 0:02:40]} 9. Nxd4 {[%clk 0:01:29]}  exd4 {[%clk 0:02:41]} 10. Qxd4 {[%clk 0:01:29]}  Nf6 {[%clk 0:02:11]} 11. g5 {[%clk 0:01:21]}  Nd7 {[%clk 0:02:11]} 12. Qxg7 {[%clk 0:01:13]}  Rf8 {[%clk 0:02:08]} 13. Qxh7 {[%clk 0:01:13]}  Bxg5 {[%clk 0:01:55]} 14. Qxe4+ {[%clk 0:01:08]}  Be7 {[%clk 0:01:54]} 15. Bg5 {[%clk 0:00:52]}  Nc5 {[%clk 0:01:53]} 16. Qe3 {[%clk 0:00:47]}  Bf5 {[%clk 0:01:41]} 17. Bb5+ {[%clk 0:00:36]}  Nd7 {[%clk 0:01:12]} 18. O-O-O {[%clk 0:00:35]}  a6 {[%clk 0:01:08]} 19. Bxd7+ {[%clk 0:00:30]}  Qxd7 {[%clk 0:01:08]} 20. Rhe1 {[%clk 0:00:29]}  f6 {[%clk 0:01:08]} 21. Bh6 {[%clk 0:00:26]}  Rf7 {[%clk 0:01:06]} 22. d6 {[%clk 0:00:25]}  cxd6 {[%clk 0:01:01]} 23. Nd5 {[%clk 0:00:25]}  Rc8 {[%clk 0:00:59]} 24. c3 {[%clk 0:00:19]}  Qa4 {[%clk 0:00:41]} 25. Qd2 {[%clk 0:00:14]}  Kd8 {[%clk 0:00:28]} 26. Nb6 {[%clk 0:00:14]}  Qh4 {[%clk 0:00:14]} 27. Nxc8 {[%clk 0:00:13]}  Bxc8 {[%clk 0:00:14]} 28. Bf4 {[%clk 0:00:11]}  Bd7 {[%clk 0:00:10]} 29. Bxd6 {[%clk 0:00:10]}  Bxd6 {[%clk 0:00:10]} 30. Qxd6 {[%clk 0:00:11]}  Qg5+ {[%clk 0:00:07]} 31. Kb1 {[%clk 0:00:11]}  Kc8 {[%clk 0:00:06]} 32. Re8+ {[%clk 0:00:09]}  Bxe8 {[%clk 0:00:05]} 33. Qd8# {[%clk 0:00:09]} 1-0


[Site "https://www.chess.com"]

[Event "Titled Tuesday Blitz October 11 Late 2022"]
[White "Petrovic, Aleksa"]
[Black "Tomaszewski, Kacper"]
[WhiteFideId "967629"]
[BlackFideId "1127373"]
[WhiteElo "2242"]
[BlackElo "2211"]
[Result "0-1"]
[Round "10"]
[TimeControl "180+1"]
[Date "2022.10.12"]
[WhiteClock "0:01:04"]
[BlackClock "0:00:40"]

1. d4 {[%clk 0:03:00]}  d5 {[%clk 0:02:59]} 2. c4 {[%clk 0:02:57]}  Nc6 {[%clk 0:02:58]} 3. Nf3 {[%clk 0:02:50]}  Bg4 {[%clk 0:02:52]} 4. cxd5 {[%clk 0:02:51]}  Bxf3 {[%clk 0:02:49]} 5. gxf3 {[%clk 0:02:51]}  Qxd5 {[%clk 0:02:49]} 6. Be3 {[%clk 0:02:48]}  e5 {[%clk 0:02:46]} 7. Nc3 {[%clk 0:02:46]}  Bb4 {[%clk 0:02:46]} 8. Qd2 {[%clk 0:02:46]}  O-O-O {[%clk 0:02:25]} 9. Bh3+ {[%clk 0:02:38]}  Kb8 {[%clk 0:02:21]} 10. Nxd5 {[%clk 0:02:38]}  Bxd2+ {[%clk 0:02:20]} 11. Bxd2 {[%clk 0:02:38]}  Rxd5 {[%clk 0:02:19]} 12. dxe5 {[%clk 0:02:38]}  Nxe5 {[%clk 0:02:13]} 13. f4 {[%clk 0:02:35]}  Nc4 {[%clk 0:02:10]} 14. Bc3 {[%clk 0:02:35]}  Nf6 {[%clk 0:02:10]} 15. Rg1 {[%clk 0:02:27]}  Nh5 {[%clk 0:02:03]} 16. e3 {[%clk 0:02:23]}  Re8 {[%clk 0:01:59]} 17. Rd1 {[%clk 0:02:08]}  Nxf4 {[%clk 0:01:53]} 18. Rxd5 {[%clk 0:02:07]}  Nxd5 {[%clk 0:01:52]} 19. Rxg7 {[%clk 0:02:07]}  b6 {[%clk 0:01:21]} 20. Rxf7 {[%clk 0:01:45]}  Ncxe3 {[%clk 0:01:17]} 21. fxe3 {[%clk 0:01:43]}  Rxe3+ {[%clk 0:01:17]} 22. Kf2 {[%clk 0:01:33]}  Rxh3 {[%clk 0:01:17]} 23. Kg2 {[%clk 0:01:33]}  Rh5 {[%clk 0:01:10]} 24. Kg3 {[%clk 0:01:32]}  a5 {[%clk 0:01:03]} 25. h4 {[%clk 0:01:28]}  Nxc3 {[%clk 0:01:00]} 26. bxc3 {[%clk 0:01:27]}  h6 {[%clk 0:00:59]} 27. Kg4 {[%clk 0:01:20]}  Rc5 {[%clk 0:00:58]} 28. Rh7 {[%clk 0:01:20]}  Rxc3 {[%clk 0:00:53]} 29. Rxh6 {[%clk 0:01:20]}  Rc2 {[%clk 0:00:53]} 30. Rf6 {[%clk 0:01:19]}  Rxa2 {[%clk 0:00:51]} 31. h5 {[%clk 0:01:19]}  Rg2+ {[%clk 0:00:51]} 32. Kf5 {[%clk 0:01:14]}  a4 {[%clk 0:00:48]} 33. h6 {[%clk 0:01:12]}  Kb7 {[%clk 0:00:40]} 34. Rf8 {[%clk 0:01:04]}  Rf2+ {[%clk 0:00:40]} 0-1


[Site "https://www.chess.com"]

[Event "Titled Tuesday Blitz October 11 Late 2022"]
[White "Remolar Gallen, Jose"]
[Black "Jorquera, Marcelo"]
[WhiteFideId "2215187"]
[BlackFideId "3401197"]
[WhiteElo "2214"]
[BlackElo "2136"]
[Result "1/2-1/2"]
[Round "10"]
[TimeControl "180+1"]
[Date "2022.10.12"]
[WhiteClock "0:00:07"]
[BlackClock "0:00:04"]

1. d4 {[%clk 0:03:00]}  d5 {[%clk 0:02:58]} 2. Nf3 {[%clk 0:03:00]}  Bf5 {[%clk 0:02:57]} 3. c4 {[%clk 0:03:00]}  e6 {[%clk 0:02:56]} 4. Nc3 {[%clk 0:03:01]}  Nf6 {[%clk 0:02:53]} 5. Qb3 {[%clk 0:02:59]}  Nc6 {[%clk 0:02:52]} 6. cxd5 {[%clk 0:02:23]}  exd5 {[%clk 0:02:49]} 7. Bf4 {[%clk 0:02:18]}  Na5 {[%clk 0:02:43]} 8. Qa4+ {[%clk 0:02:13]}  c6 {[%clk 0:02:44]} 9. e3 {[%clk 0:02:12]}  a6 {[%clk 0:02:43]} 10. Be2 {[%clk 0:02:10]}  b5 {[%clk 0:02:42]} 11. Qd1 {[%clk 0:02:09]}  Nc4 {[%clk 0:02:42]} 12. Bxc4 {[%clk 0:02:01]}  bxc4 {[%clk 0:02:37]} 13. O-O {[%clk 0:02:02]}  Bd6 {[%clk 0:02:25]} 14. Ne5 {[%clk 0:01:57]}  Bxe5 {[%clk 0:02:17]} 15. Bxe5 {[%clk 0:01:53]}  O-O {[%clk 0:02:13]} 16. Qa4 {[%clk 0:01:50]}  Bd7 {[%clk 0:02:10]} 17. Qa3 {[%clk 0:01:40]}  Ng4 {[%clk 0:01:53]} 18. Bd6 {[%clk 0:01:35]}  Re8 {[%clk 0:01:52]} 19. h3 {[%clk 0:01:26]}  Nf6 {[%clk 0:01:51]} 20. Be5 {[%clk 0:01:19]}  h6 {[%clk 0:01:32]} 21. Rac1 {[%clk 0:01:16]}  Bf5 {[%clk 0:01:25]} 22. Na4 {[%clk 0:01:04]}  Ne4 {[%clk 0:01:11]} 23. f3 {[%clk 0:00:45]}  Ng5 {[%clk 0:01:08]} 24. Nc5 {[%clk 0:00:36]}  f6 {[%clk 0:01:06]} 25. Bf4 {[%clk 0:00:34]}  Bc8 {[%clk 0:00:59]} 26. Bxg5 {[%clk 0:00:22]}  hxg5 {[%clk 0:00:59]} 27. b3 {[%clk 0:00:23]}  cxb3 {[%clk 0:00:54]} 28. Qxb3 {[%clk 0:00:21]}  Qe7 {[%clk 0:00:52]} 29. Rc3 {[%clk 0:00:20]}  Bf5 {[%clk 0:00:49]} 30. e4 {[%clk 0:00:20]}  Be6 {[%clk 0:00:47]} 31. Qc2 {[%clk 0:00:10]}  Bf7 {[%clk 0:00:45]} 32. Re1 {[%clk 0:00:09]}  Qc7 {[%clk 0:00:40]} 33. Qf2 {[%clk 0:00:07]}  a5 {[%clk 0:00:35]} 34. Rce3 {[%clk 0:00:08]}  dxe4 {[%clk 0:00:32]} 35. fxe4 {[%clk 0:00:09]}  Rad8 {[%clk 0:00:26]} 36. e5 {[%clk 0:00:08]}  Rxd4 {[%clk 0:00:17]} 37. exf6 {[%clk 0:00:08]}  Rxe3 {[%clk 0:00:17]} 38. Qxe3 {[%clk 0:00:09]}  Qf4 {[%clk 0:00:16]} 39. fxg7 {[%clk 0:00:05]}  Qxe3+ {[%clk 0:00:14]} 40. Rxe3 {[%clk 0:00:06]}  Bxa2 {[%clk 0:00:14]} 41. Ra3 {[%clk 0:00:06]}  Bd5 {[%clk 0:00:14]} 42. Rxa5 {[%clk 0:00:06]}  Rd2 {[%clk 0:00:14]} 43. Nd7 {[%clk 0:00:05]}  Kxg7 {[%clk 0:00:13]} 44. Ne5 {[%clk 0:00:03]}  Rxg2+ {[%clk 0:00:13]} 45. Kf1 {[%clk 0:00:03]}  Rh2 {[%clk 0:00:12]} 46. Nxc6 {[%clk 0:00:03]}  Bxc6 {[%clk 0:00:10]} 47. Rxg5+ {[%clk 0:00:03]}  Kf6 {[%clk 0:00:10]} 48. Rg3 {[%clk 0:00:04]}  Bd7 {[%clk 0:00:08]} 49. Kg1 {[%clk 0:00:04]}  Rd2 {[%clk 0:00:08]} 50. Rf3+ {[%clk 0:00:04]}  Bf5 {[%clk 0:00:08]} 51. Rf2 {[%clk 0:00:05]}  Rd3 {[%clk 0:00:07]} 52. Kg2 {[%clk 0:00:05]}  Kg5 {[%clk 0:00:05]} 53. h4+ {[%clk 0:00:04]}  Kg4 {[%clk 0:00:05]} 54. h5 {[%clk 0:00:04]}  Rg3+ {[%clk 0:00:05]} 55. Kh2 {[%clk 0:00:05]}  Rh3+ {[%clk 0:00:06]} 56. Kg2 {[%clk 0:00:05]}  Rxh5 {[%clk 0:00:07]} 57. Rb2 {[%clk 0:00:05]}  Rh8 {[%clk 0:00:07]} 58. Rb4+ {[%clk 0:00:05]}  Kg5 {[%clk 0:00:07]} 59. Kg3 {[%clk 0:00:06]}  Re8 {[%clk 0:00:07]} 60. Rb3 {[%clk 0:00:05]}  Re5 {[%clk 0:00:07]} 61. Rc3 {[%clk 0:00:06]}  Re4 {[%clk 0:00:07]} 62. Ra3 {[%clk 0:00:04]}  Rd4 {[%clk 0:00:08]} 63. Kf3 {[%clk 0:00:04]}  Rd1 {[%clk 0:00:08]} 64. Ke2 {[%clk 0:00:04]}  Rd6 {[%clk 0:00:07]} 65. Kf3 {[%clk 0:00:04]}  Rf6 {[%clk 0:00:07]} 66. Ra5 {[%clk 0:00:04]}  Rb6 {[%clk 0:00:07]} 67. Ra3 {[%clk 0:00:03]}  Rb4 {[%clk 0:00:06]} 68. Kg3 {[%clk 0:00:04]}  Rg4+ {[%clk 0:00:05]} 69. Kf3 {[%clk 0:00:04]}  Rh4 {[%clk 0:00:06]} 70. Ra5 {[%clk 0:00:05]}  Rh3+ {[%clk 0:00:06]} 71. Kg2 {[%clk 0:00:05]}  Rc3 {[%clk 0:00:06]} 72. Ra4 {[%clk 0:00:05]}  Bg4 {[%clk 0:00:06]} 73. Kf2 {[%clk 0:00:06]}  Kh4 {[%clk 0:00:05]} 74. Rb4 {[%clk 0:00:05]}  Rf3+ {[%clk 0:00:05]} 75. Kg2 {[%clk 0:00:06]}  Rc3 {[%clk 0:00:05]} 76. Rb2 {[%clk 0:00:06]}  Bh3+ {[%clk 0:00:04]} 77. Kh2 {[%clk 0:00:05]}  Bg4 {[%clk 0:00:05]} 78. Kg2 {[%clk 0:00:06]}  Kg5 {[%clk 0:00:05]} 79. Rb5+ {[%clk 0:00:05]}  Kf4 {[%clk 0:00:05]} 80. Rb4+ {[%clk 0:00:06]}  Kg5 {[%clk 0:00:05]} 81. Rb2 {[%clk 0:00:07]}  Bf5 {[%clk 0:00:06]} 82. Kh2 {[%clk 0:00:06]}  Kf4 {[%clk 0:00:06]} 83. Kg2 {[%clk 0:00:07]}  Be4+ {[%clk 0:00:06]} 84. Kf2 {[%clk 0:00:07]}  Rh3 {[%clk 0:00:05]} 85. Rb4 {[%clk 0:00:07]}  Rh2+ {[%clk 0:00:05]} 86. Kg1 {[%clk 0:00:07]}  Rc2 {[%clk 0:00:06]} 87. Kf1 {[%clk 0:00:07]}  Kf3 {[%clk 0:00:06]} 88. Rb3+ {[%clk 0:00:07]}  Kf4 {[%clk 0:00:05]} 89. Ke1 {[%clk 0:00:08]}  Bf3 {[%clk 0:00:05]} 90. Rb4+ {[%clk 0:00:07]}  Kg3 {[%clk 0:00:04]} 91. Rb3 {[%clk 0:00:08]}  Re2+ {[%clk 0:00:04]} 92. Kf1 {[%clk 0:00:08]}  Rd2 {[%clk 0:00:04]} 93. Rb1 {[%clk 0:00:08]}  Rd6 {[%clk 0:00:02]} 94. Rc1 {[%clk 0:00:07]}  Rh6 {[%clk 0:00:02]} 95. Ke1 {[%clk 0:00:08]}  Re6+ {[%clk 0:00:01]} 96. Kd2 {[%clk 0:00:08]}  Rd6+ {[%clk 0:00:01]} 97. Kc3 {[%clk 0:00:08]}  Kf2 {[%clk 0:00:01]} 98. Rc2+ {[%clk 0:00:08]}  Ke3 {[%clk 0:00:02]} 99. Kb4 {[%clk 0:00:08]}  Be4 {[%clk 0:00:03]} 100. Rc3+ {[%clk 0:00:08]}  Bd3 {[%clk 0:00:03]} 101. Kc5 {[%clk 0:00:08]}  Rd4 {[%clk 0:00:03]} 102. Rc1 {[%clk 0:00:07]}  Rd8 {[%clk 0:00:03]} 103. Re1+ {[%clk 0:00:07]}  Be2 {[%clk 0:00:03]} 104. Rh1 {[%clk 0:00:06]}  Rc8+ {[%clk 0:00:04]} 105. Kb4 {[%clk 0:00:07]}  Bd3 {[%clk 0:00:04]} 106. Rh3+ {[%clk 0:00:07]}  Kd2 {[%clk 0:00:04]} 1/2-1/2


[Site "https://www.chess.com"]